lending/lending_fUSD_20250429
["ID","MTS","AMOUNT","RATE_DAILY","PERIOD"]
[359352166,1745949054213,-2047.07,0.00028218,2]
[359352167,1745949054223,-568.59,0.00028218,2]
[359352168,1745949054232,-568.59,0.00028218,2]
[359352169,1745949054242,-219257.79247464,0.00028219,2]
[359352170,1745949054252,-519.67,0.00028219,2]
[359352171,1745949054261,-498.52,0.00028219,2]
[359352172,1745949054271,-470.0,0.00028219,2]
[359352173,1745949054281,-470.0,0.00028219,2]
[359352174,1745949054291,-470.0,0.00028219,2]
[359352175,1745949054300,-470.0,0.00028219,2]
[359352176,1745949054310,-537.97,0.00028219,2]
[359352177,1745949054319,-470.0,0.00028219,2]
[359352178,1745949054330,-470.0,0.00028219,2]
[359352179,1745949054341,-470.0,0.00028219,2]
[359352180,1745949054351,-470.0,0.00028219,2]
[359352181,1745949054361,-470.0,0.00028219,2]
[359352182,1745949054370,-470.0,0.00028219,2]
[359352183,1745949054380,-1113.6,0.00028219,2]
[359352184,1745949054390,-470.0,0.00028219,2]
[359352185,1745949054400,-470.0,0.00028219,2]
[359352186,1745949054410,-611.04,0.00028219,2]
[359352187,1745949054420,-470.0,0.00028219,2]
[359352188,1745949054431,-470.0,0.00028219,2]
[359352189,1745949054441,-470.0,0.00028219,2]
[359352190,1745949054450,-470.0,0.00028219,2]
[359352191,1745949054461,-631.2,0.00028219,2]
[359352192,1745949054470,-564.79,0.00028219,2]
[359352193,1745949054480,-565.61704778,0.00028219,2]
[359352194,1745949054490,-151.0,0.00028219,7]
[359352195,1745949054500,-668.5,0.00028219,2]
[359352196,1745949054510,-470.0,0.00028219,2]
[359352197,1745949054520,-826.62,0.00028219,2]
[359352198,1745949054530,-470.0,0.00028219,2]
[359352199,1745949054540,-470.0,0.00028219,2]
[359352200,1745949054549,-470.0,0.00028219,2]
[359352201,1745949054559,-470.0,0.00028219,2]
[359352202,1745949054569,-800.64,0.00028219,2]
[359352203,1745949054579,-470.0,0.00028219,2]
[359352204,1745949054588,-470.0,0.00028219,2]
[359352205,1745949054598,-470.0,0.00028219,2]
[359352206,1745949054607,-502.1,0.00028219,2]
[359352207,1745949054617,-470.0,0.00028219,2]
[359352208,1745949054627,-470.0,0.00028219,2]
[359352209,1745949054637,-470.0,0.00028219,2]
[359352210,1745949054646,-2160.32,0.00028219,2]
[359352211,1745949054656,-470.0,0.00028219,2]
[359352212,1745949054666,-470.0,0.00028219,2]
[359352213,1745949054676,-470.0,0.00028219,2]
[359352214,1745949054687,-1312.33,0.00028219,2]
[359352215,1745949054697,-470.0,0.00028219,2]
[359352216,1745949054707,-548.44,0.00028219,2]
[359352217,1745949054718,-151.0,0.00028219,7]
[359352218,1745949054727,-470.0,0.00028219,2]
[359352219,1745949054738,-470.0,0.00028219,2]
[359352220,1745949054748,-2312.86,0.00028219,2]
[359352221,1745949054757,-588.08680533,0.00028219,2]
[359352222,1745949054767,-470.0,0.00028219,2]
[359352223,1745949054777,-470.0,0.00028219,2]
[359352224,1745949054787,-470.0,0.00028219,2]
[359352225,1745949054796,-470.0,0.00028219,2]
[359352226,1745949054806,-470.0,0.00028219,2]
[359352227,1745949054816,-484.25,0.00028219,2]
[359352228,1745949054827,-151.0,0.00028219,7]
[359352229,1745949054839,-470.0,0.00028219,2]
[359352230,1745949054849,-557.17298837,0.00028219,2]
[359352231,1745949054859,-470.0,0.00028219,2]
[359352232,1745949054869,-321.17917664,0.00028219,2]
[359352233,1745949054878,-470.0,0.00028219,2]
[359352234,1745949054888,-470.0,0.00028219,2]
[359352235,1745949054898,-470.0,0.00028219,2]
[359352236,1745949054908,-470.0,0.00028219,2]
[359352237,1745949054918,-470.0,0.00028219,2]
[359352238,1745949054928,-470.0,0.00028219,2]
[359352239,1745949054939,-151.0,0.00028219,7]
[359352240,1745949054949,-5959.741954,0.00028219,2]
[359352241,1745949054958,-470.0,0.00028219,2]
[359352242,1745949054968,-470.0,0.00028219,2]
[359352243,1745949054978,-474.82630286,0.00028219,2]
[359352244,1745949054987,-151.0,0.00028219,7]
[359352245,1745949054997,-470.0,0.00028219,2]
[359352246,1745949055009,-470.0,0.00028219,2]
[359352247,1745949055019,-470.0,0.00028219,2]
[359352248,1745949055029,-151.0,0.00028219,7]
[359352249,1745949055044,-470.0,0.00028219,2]
[359352250,1745949055054,-470.0,0.00028219,2]
[359352251,1745949055063,-659.334822,0.00028219,2]
[359352252,1745949055075,-470.0,0.00028219,2]
[359352253,1745949055085,-470.0,0.00028219,2]
[359352254,1745949055096,-470.0,0.00028219,2]
[359352255,1745949055107,-486.33,0.00028219,2]
[359352256,1745949055116,-657.74,0.00028219,2]
[359352257,1745949055127,-470.0,0.00028219,2]
[359352258,1745949055137,-470.0,0.00028219,2]
[359352259,1745949055146,-470.0,0.00028219,2]
[359352260,1745949055156,-437.515976,0.00028219,2]
[359352261,1745949055166,-470.0,0.00028219,2]
[359352262,1745949055176,-470.0,0.00028219,2]
[359352263,1745949055185,-470.0,0.00028219,2]
[359352264,1745949055195,-470.0,0.00028219,2]
[359352265,1745949055205,-542.45,0.00028219,2]
[359352266,1745949055214,-656.69,0.00028219,2]
[359352267,1745949055224,-552.91,0.00028219,2]
[359352268,1745949055234,-151.0,0.00028219,7]
[359352269,1745949055243,-470.0,0.00028219,2]
[359352270,1745949055253,-470.0,0.00028219,2]
[359352271,1745949055263,-470.0,0.00028219,2]
[359352272,1745949055273,-470.0,0.00028219,2]
[359352273,1745949055283,-610.66,0.00028219,2]
[359352274,1745949055293,-470.0,0.00028219,2]
[359352275,1745949055302,-470.0,0.00028219,2]
[359352276,1745949055312,-470.0,0.00028219,2]
[359352277,1745949055321,-558.47,0.00028219,2]
[359352278,1745949055331,-471.31,0.00028219,2]
[359352279,1745949055342,-151.0,0.00028219,7]
[359352280,1745949055352,-1049.74,0.00028219,2]
[359352281,1745949055362,-470.0,0.00028219,2]
[359352282,1745949055372,-470.0,0.00028219,2]
[359352283,1745949055382,-566.36,0.00028219,2]
[359352284,1745949055392,-470.0,0.00028219,2]
[359352285,1745949055401,-470.0,0.00028219,2]
[359352286,1745949055411,-534.78,0.00028219,2]
[359352287,1745949055421,-563.33,0.00028219,2]
[359352288,1745949055431,-372.483872,0.00028219,2]
[359352289,1745949055441,-470.0,0.00028219,2]
[359352290,1745949055451,-470.0,0.00028219,2]
[359352291,1745949055460,-470.0,0.00028219,2]
[359352292,1745949055470,-470.0,0.00028219,2]
[359352293,1745949055480,-470.0,0.00028219,2]
[359352294,1745949055490,-470.0,0.00028219,2]
[359352295,1745949055499,-557.82,0.00028219,2]
[359352296,1745949055509,-1537.22,0.00028219,2]
[359352297,1745949055519,-470.0,0.00028219,2]
[359352298,1745949055529,-496.59,0.00028219,2]
[359352299,1745949055538,-151.0,0.00028219,7]
[359352300,1745949055548,-151.0,0.00028219,7]
[359352301,1745949055558,-470.0,0.00028219,2]
[359352302,1745949055568,-470.0,0.00028219,2]
[359352303,1745949055578,-151.0,0.00028219,7]
[359352304,1745949055589,-470.0,0.00028219,2]
[359352305,1745949055599,-652.05,0.00028219,2]
[359352306,1745949055609,-1146.41,0.00028219,2]
[359352307,1745949055619,-470.0,0.00028219,2]
[359352308,1745949055629,-579.71,0.00028219,2]
[359352309,1745949055639,-504.4,0.00028219,2]
[359352310,1745949055648,-470.0,0.00028219,2]
[359352311,1745949055658,-470.0,0.00028219,2]
[359352312,1745949055667,-470.0,0.00028219,2]
[359352313,1745949055677,-151.0,0.00028219,7]
[359352314,1745949055688,-470.0,0.00028219,2]
[359352315,1745949055697,-470.0,0.00028219,2]
[359352316,1745949055707,-199.674812,0.00028219,7]
[359352317,1745949055717,-704.42,0.00028219,2]
[359352318,1745949055727,-470.0,0.00028219,2]
[359352319,1745949055737,-470.0,0.00028219,2]
[359352320,1745949055746,-470.0,0.00028219,2]
[359352321,1745949055756,-470.0,0.00028219,2]
[359352322,1745949055765,-470.0,0.00028219,2]
[359352323,1745949055775,-470.0,0.00028219,2]
[359352324,1745949055784,-470.0,0.00028219,2]
[359352325,1745949055794,-470.0,0.00028219,2]
[359352326,1745949055804,-470.0,0.00028219,2]
[359352327,1745949055814,-587.58,0.00028219,2]
[359352328,1745949055824,-625.71,0.00028219,2]
[359352329,1745949055834,-2279.31,0.00028219,2]
[359352330,1745949055847,-470.0,0.00028219,2]
[359352331,1745949055857,-151.0,0.00028219,7]
[359352332,1745949055867,-470.0,0.00028219,2]
[359352333,1745949055876,-470.0,0.00028219,2]
[359352334,1745949055886,-544.48,0.00028219,2]
[359352335,1745949055896,-151.0,0.00028219,7]
[359352336,1745949055906,-247.77446227,0.00028219,2]
[359352337,1745949055916,-470.0,0.00028219,2]
[359352338,1745949055926,-904.77,0.00028219,2]
[359352339,1745949055936,-151.0,0.00028219,7]
[359352340,1745949055945,-1788.53,0.00028219,2]
[359352341,1745949055955,-510.11,0.00028219,2]
[359352342,1745949055964,-250.0,0.00028219,2]
[359352343,1745949055974,-470.0,0.00028219,2]
[359352344,1745949055983,-509.58076527,0.00028219,2]
[359352345,1745949055993,-470.0,0.00028219,2]
[359352346,1745949056002,-470.0,0.00028219,2]
[359352347,1745949056012,-685.59,0.00028219,2]
[359352348,1745949056022,-470.0,0.00028219,2]
[359352349,1745949056036,-470.0,0.00028219,2]
[359352350,1745949056047,-539.63,0.00028219,2]
[359352351,1745949056057,-470.0,0.00028219,2]
[359352352,1745949056066,-151.0,0.00028219,7]
[359352353,1745949056076,-470.0,0.00028219,2]
[359352354,1745949056085,-1581.86,0.00028219,2]
[359352355,1745949056096,-470.0,0.00028219,2]
[359352356,1745949056106,-703.7,0.00028219,2]
[359352357,1745949056116,-470.0,0.00028219,2]
[359352358,1745949056126,-515.86,0.00028219,2]
[359352359,1745949056136,-2163.53,0.00028219,2]
[359352360,1745949056145,-470.0,0.00028219,2]
[359352361,1745949056155,-159.665265,0.00028219,7]
[359352362,1745949056166,-374.94376128,0.00028219,2]
[359352363,1745949056176,-470.0,0.00028219,2]
[359352364,1745949056186,-470.0,0.00028219,2]
[359352365,1745949056197,-1020.49,0.00028219,2]
[359352366,1745949056206,-470.0,0.00028219,2]
[359352367,1745949056216,-470.0,0.00028219,2]
[359352368,1745949056226,-716.59,0.00028219,2]
[359352369,1745949056235,-470.0,0.00028219,2]
[359352370,1745949056245,-470.0,0.00028219,2]
[359352371,1745949056255,-470.0,0.00028219,2]
[359352372,1745949056265,-490.92,0.00028219,2]
[359352373,1745949056275,-470.0,0.00028219,2]
[359352374,1745949056284,-2329.69,0.00028219,2]
[359352375,1745949056294,-150.09443301,0.00028219,2]
[359352376,1745949056304,-470.0,0.00028219,2]
[359352377,1745949056313,-470.0,0.00028219,2]
[359352378,1745949056324,-470.0,0.00028219,2]
[359352379,1745949056333,-765.88,0.00028219,2]
[359352380,1745949056343,-470.0,0.00028219,2]
[359352381,1745949056353,-470.0,0.00028219,2]
[359352382,1745949056363,-568.19,0.00028219,2]
[359352383,1745949056373,-470.0,0.00028219,2]
[359352384,1745949056383,-1203.42,0.00028219,2]
[359352385,1745949056394,-645.19,0.00028219,2]
[359352386,1745949056403,-970.99,0.00028219,2]
[359352387,1745949056413,-901.28,0.00028219,2]
[359352388,1745949056425,-470.0,0.00028219,2]
[359352389,1745949056436,-151.0,0.00028219,7]
[359352390,1745949056446,-701.64,0.00028219,2]
[359352391,1745949056457,-470.0,0.00028219,2]
[359352392,1745949056467,-470.0,0.00028219,2]
[359352393,1745949056478,-470.0,0.00028219,2]
[359352394,1745949056489,-470.0,0.00028219,2]
[359352395,1745949056502,-1092.53,0.00028219,2]
[359352396,1745949056513,-470.0,0.00028219,2]
[359352397,1745949056523,-470.0,0.00028219,2]
[359352398,1745949056533,-470.0,0.00028219,2]
[359352399,1745949056543,-470.0,0.00028219,2]
[359352400,1745949056554,-401.90347713,0.00028219,2]
[359352401,1745949056564,-903.38,0.00028219,2]
[359352402,1745949056575,-470.0,0.00028219,2]
[359352403,1745949056585,-1736.45,0.00028219,2]
[359352404,1745949056596,-470.0,0.00028219,2]
[359352405,1745949056608,-1436.64,0.00028219,2]
[359352406,1745949056619,-470.0,0.00028219,2]
[359352407,1745949056803,-559.81,0.00028219,2]
[359352408,1745949056814,-2108.64,0.00028219,2]
[359352409,1745949056824,-960.7,0.00028219,2]
[359352410,1745949056834,-2353.36,0.00028219,2]
[359352411,1745949056844,-470.0,0.00028219,2]
[359352412,1745949056855,-347.38779735,0.00028219,2]
[359352413,1745949056864,-745.59,0.00028219,2]
[359352414,1745949056873,-545.5,0.00028219,2]
[359352415,1745949056883,-549.47,0.00028219,2]
[359352416,1745949056893,-470.0,0.00028219,2]
[359352417,1745949056902,-586.45,0.00028219,2]
[359352418,1745949056911,-470.0,0.00028219,2]
[359352419,1745949056921,-470.0,0.00028219,2]
[359352420,1745949056930,-470.0,0.00028219,2]
[359352421,1745949056940,-770.83,0.00028219,2]
[359352422,1745949056949,-216.09813772,0.00028219,2]
[359352423,1745949056959,-797.04,0.00028219,2]
[359352424,1745949056968,-470.0,0.00028219,2]
[359352425,1745949056978,-470.0,0.00028219,2]
[359352426,1745949056987,-543.81,0.00028219,2]
[359352427,1745949056997,-885.12,0.00028219,2]
[359352428,1745949057006,-470.0,0.00028219,2]
[359352429,1745949057016,-562.35,0.00028219,2]
[359352430,1745949057025,-476.24,0.00028219,2]
[359352431,1745949057037,-880.52,0.00028219,2]
[359352432,1745949057047,-915.71,0.00028219,2]
[359352433,1745949057056,-470.0,0.00028219,2]
[359352434,1745949057066,-369.36233472,0.00028219,2]
[359352435,1745949057076,-820.44,0.00028219,2]
[359352436,1745949057086,-470.0,0.00028219,2]
[359352437,1745949057096,-470.0,0.00028219,2]
[359352438,1745949057107,-470.0,0.00028219,2]
[359352439,1745949057118,-625.99,0.00028219,2]
[359352440,1745949057128,-847.38,0.00028219,2]
[359352441,1745949057137,-568.66,0.00028219,2]
[359352442,1745949057147,-902.33,0.00028219,2]
[359352443,1745949057157,-486.67,0.00028219,2]
[359352444,1745949057166,-470.0,0.00028219,2]
[359352445,1745949057175,-682.29,0.00028219,2]
[359352446,1745949057185,-3039.36,0.00028219,2]
[359352447,1745949057194,-474.23,0.00028219,2]
[359352448,1745949057205,-470.0,0.00028219,2]
[359352449,1745949057214,-470.0,0.00028219,2]
[359352450,1745949057224,-470.0,0.00028219,2]
[359352451,1745949057233,-470.0,0.00028219,2]
[359352452,1745949057242,-613.1,0.00028219,2]
[359352453,1745949057251,-683.49,0.00028219,2]
[359352454,1745949057260,-470.0,0.00028219,2]
[359352455,1745949057270,-537.75,0.00028219,2]
[359352456,1745949057279,-539.83,0.00028219,2]
[359352457,1745949057289,-470.0,0.00028219,2]
[359352458,1745949057299,-595.72,0.00028219,2]
[359352459,1745949057308,-470.0,0.00028219,2]
[359352460,1745949057317,-470.0,0.00028219,2]
[359352461,1745949057327,-470.0,0.00028219,2]
[359352462,1745949057336,-6080.07,0.00028219,2]
[359352463,1745949057347,-481.77,0.00028219,2]
[359352464,1745949057356,-622.98,0.00028219,2]
[359352465,1745949057366,-520.98,0.00028219,2]
[359352466,1745949057375,-470.0,0.00028219,2]
[359352467,1745949057384,-869.31,0.00028219,2]
[359352468,1745949057393,-704.81,0.00028219,2]
[359352469,1745949057403,-470.0,0.00028219,2]
[359352470,1745949057412,-470.0,0.00028219,2]
[359352471,1745949057421,-492.66,0.00028219,2]
[359352472,1745949057431,-12545.32,0.00028219,2]
[359352473,1745949057440,-783.52,0.00028219,2]
[359352474,1745949057450,-557.05,0.00028219,2]
[359352475,1745949057459,-470.0,0.00028219,2]
[359352476,1745949057468,-470.0,0.00028219,2]
[359352477,1745949057477,-531.21,0.00028219,2]
[359352478,1745949057486,-470.0,0.00028219,2]
[359352479,1745949057498,-488.6,0.00028219,2]
[359352480,1745949057508,-636.94,0.00028219,2]
[359352481,1745949057518,-1144.88,0.00028219,2]
[359352482,1745949057527,-470.0,0.00028219,2]
[359352483,1745949057539,-624.4,0.00028219,2]
[359352484,1745949057550,-470.0,0.00028219,2]
[359352485,1745949057560,-650.35,0.00028219,2]
[359352486,1745949057569,-470.0,0.00028219,2]
[359352487,1745949057579,-673.11,0.00028219,2]
[359352488,1745949057588,-470.0,0.00028219,2]
[359352489,1745949057600,-470.0,0.00028219,2]
[359352490,1745949057610,-472.75,0.00028219,2]
[359352491,1745949057619,-470.0,0.00028219,2]
[359352492,1745949057629,-470.0,0.00028219,2]
[359352493,1745949057639,-6481.15,0.00028219,2]
[359352494,1745949057649,-505.43,0.00028219,2]
[359352495,1745949057659,-470.0,0.00028219,2]
[359352496,1745949057669,-470.0,0.00028219,2]
[359352497,1745949057679,-470.0,0.00028219,2]
[359352498,1745949057688,-470.0,0.00028219,2]
[359352499,1745949057697,-61295.82,0.00028219,2]
[359352500,1745949057707,-482.94,0.00028219,2]
[359352501,1745949057716,-606.96,0.00028219,2]
[359352502,1745949057725,-470.0,0.00028219,2]
[359352503,1745949057737,-470.0,0.00028219,2]
[359352504,1745949057747,-470.0,0.00028219,2]
[359352505,1745949057756,-470.0,0.00028219,2]
[359352506,1745949057766,-470.0,0.00028219,2]
[359352507,1745949057775,-586.56,0.00028219,2]
[359352508,1745949057784,-1001.6,0.00028219,2]
[359352509,1745949057793,-470.0,0.00028219,2]
[359352510,1745949057803,-470.0,0.00028219,2]
[359352511,1745949057813,-470.0,0.00028219,2]
[359352512,1745949057822,-7239.44,0.00028219,2]
[359352513,1745949057832,-470.0,0.00028219,2]
[359352514,1745949057843,-610.17,0.00028219,2]
[359352515,1745949057852,-470.0,0.00028219,2]
[359352516,1745949057861,-308.73100533,0.00028219,2]
[359352517,1745949057870,-470.0,0.00028219,2]
[359352518,1745949057879,-6805.43,0.00028219,2]
[359352519,1745949057888,-2927.0,0.00028219,2]
[359352520,1745949057897,-470.0,0.00028219,2]
[359352521,1745949057908,-470.0,0.00028219,2]
[359352522,1745949057919,-500.0,0.00028219,2]
[359352523,1745949057929,-150.0,0.00028219,2]
[359352524,1745949057939,-150.0,0.00028219,2]
[359352525,1745949057948,-150.0,0.00028219,2]
[359352526,1745949057958,-500.0,0.00028273,5]
[359352527,1745949057968,-2082.1308888,0.00028279,7]
[359352528,1745949057977,-571.520099,0.00028336,2]
[359352529,1745949057986,-500.0,0.00028337,10]
[359352530,1745949057996,-500.0,0.00028337,10]
[359352531,1745949058005,-500.0,0.00028337,10]
[359352532,1745949058015,-500.0,0.00028337,10]
[359352533,1745949058024,-500.0,0.00028337,10]
[359352534,1745949058035,-500.0,0.00028337,10]
[359352535,1745949058045,-500.0,0.00028337,10]
[359352536,1745949058055,-500.0,0.00028337,10]
[359352537,1745949058064,-333.59446545,0.00028375,2]
[359352538,1745949058074,-211.25339235,0.00028392,2]
[359352539,1745949058083,-3402.46960673,0.00028441,2]
[359352540,1745949058092,-1097.76173594,0.00028459,2]
[359352541,1745949058102,-500.0,0.00028473,5]
[359352542,1745949058111,-591.0,0.00028484,5]
[359352543,1745949058120,-300.0,0.00028492,10]
[359352544,1745949058129,-500.0,0.00028492,2]
[359352545,1745949058139,-500.0,0.00028492,2]
[359352546,1745949058148,-300.0,0.00028492,10]
[359352547,1745949058159,-3823.23,0.00028492,2]
[359352548,1745949058168,-2052.75,0.00028492,2]
[359352549,1745949058177,-2047.07,0.00028492,2]
[359352550,1745949058186,-151.0,0.00028492,7]
[359352551,1745949058196,-151.0,0.00028492,7]
[359352552,1745949058206,-151.0,0.00028492,7]
[359352553,1745949058217,-151.0,0.00028492,7]
[359352554,1745949058226,-151.0,0.00028492,7]
[359352555,1745949058235,-568.59,0.00028492,2]
[359352556,1745949058245,-151.0,0.00028492,7]
[359352557,1745949058255,-151.0,0.00028492,7]
[359352558,1745949058264,-151.0,0.00028492,7]
[359352559,1745949058273,-519.67,0.00028493,2]
[359352560,1745949058282,-498.52,0.00028493,2]
[359352561,1745949058291,-470.0,0.00028493,2]
[359352562,1745949058301,-470.0,0.00028493,2]
[359352563,1745949058310,-470.0,0.00028493,2]
[359352564,1745949058319,-470.0,0.00028493,2]
[359352565,1745949058329,-537.97,0.00028493,2]
[359352566,1745949058338,-470.0,0.00028493,2]
[359352567,1745949058348,-470.0,0.00028493,2]
[359352568,1745949058357,-470.0,0.00028493,2]
[359352569,1745949058367,-470.0,0.00028493,2]
[359352570,1745949058376,-470.0,0.00028493,2]
[359352571,1745949058385,-470.0,0.00028493,2]
[359352572,1745949058395,-1113.6,0.00028493,2]
[359352573,1745949058404,-470.0,0.00028493,2]
[359352574,1745949058413,-470.0,0.00028493,2]
[359352575,1745949058423,-152.074473,0.00028493,7]
[359352576,1745949058432,-611.04,0.00028493,2]
[359352577,1745949058441,-470.0,0.00028493,2]
[359352578,1745949058450,-470.0,0.00028493,2]
[359352579,1745949058459,-470.0,0.00028493,2]
[359352580,1745949058469,-470.0,0.00028493,2]
[359352581,1745949058478,-631.2,0.00028493,2]
[359352582,1745949058487,-564.79,0.00028493,2]
[359352583,1745949058497,-668.5,0.00028493,2]
[359352584,1745949058507,-152.15219357,0.00028493,2]
[359352585,1745949058516,-826.62,0.00028493,2]
[359352586,1745949058525,-470.0,0.00028493,2]
[359352587,1745949058535,-470.0,0.00028493,2]
[359352588,1745949058544,-470.0,0.00028493,2]
[359352589,1745949058554,-470.0,0.00028493,2]
[359352590,1745949058563,-800.64,0.00028493,2]
[359352591,1745949058572,-169.15999518,0.00028493,2]
[359352592,1745949058582,-470.0,0.00028493,2]
[359352593,1745949058591,-470.0,0.00028493,2]
[359352594,1745949058601,-502.1,0.00028493,2]
[359352595,1745949058611,-470.0,0.00028493,2]
[359352596,1745949058621,-470.0,0.00028493,2]
[359352597,1745949058631,-470.0,0.00028493,2]
[359352598,1745949058641,-2160.32,0.00028493,2]
[359352599,1745949058651,-470.0,0.00028493,2]
[359352600,1745949058661,-470.0,0.00028493,2]
[359352601,1745949058670,-470.0,0.00028493,2]
[359352602,1745949058679,-1312.33,0.00028493,2]
[359352603,1745949058689,-470.0,0.00028493,2]
[359352604,1745949058698,-548.44,0.00028493,2]
[359352605,1745949058707,-470.0,0.00028493,2]
[359352606,1745949058716,-339.14692968,0.00028493,2]
[359352607,1745949058726,-2312.86,0.00028493,2]
[359352608,1745949058736,-470.0,0.00028493,2]
[359352609,1745949058745,-470.0,0.00028493,2]
[359352610,1745949058755,-470.0,0.00028493,2]
[359352611,1745949058764,-470.0,0.00028493,2]
[359352612,1745949058774,-470.0,0.00028493,2]
[359352613,1745949058783,-484.25,0.00028493,2]
[359352614,1745949058793,-597.1690535,0.00028493,2]
[359352615,1745949058803,-470.0,0.00028493,2]
[359352616,1745949058812,-470.0,0.00028493,2]
[359352617,1745949058822,-470.0,0.00028493,2]
[359352618,1745949058831,-470.0,0.00028493,2]
[359352619,1745949058840,-470.0,0.00028493,2]
[359352620,1745949058851,-470.0,0.00028493,2]
[359352621,1745949058860,-470.0,0.00028493,2]
[359352622,1745949058869,-5959.741954,0.00028493,2]
[359352623,1745949058879,-470.0,0.00028493,2]
[359352624,1745949058888,-470.0,0.00028493,2]
[359352625,1745949058898,-470.0,0.00028493,2]
[359352626,1745949058907,-470.0,0.00028493,2]
[359352627,1745949058916,-470.0,0.00028493,2]
[359352628,1745949058925,-470.0,0.00028493,2]
[359352629,1745949058934,-470.0,0.00028493,2]
[359352630,1745949058944,-470.0,0.00028493,2]
[359352631,1745949058954,-470.0,0.00028493,2]
[359352632,1745949058963,-659.334822,0.00028493,2]
[359352633,1745949058973,-470.0,0.00028493,2]
[359352634,1745949058982,-657.74,0.00028493,2]
[359352635,1745949058992,-486.33,0.00028493,2]
[359352636,1745949059002,-470.0,0.00028493,2]
[359352637,1745949059011,-470.0,0.00028493,2]
[359352638,1745949059020,-470.0,0.00028493,2]
[359352639,1745949059030,-437.515976,0.00028493,2]
[359352640,1745949059042,-470.0,0.00028493,2]
[359352641,1745949059051,-470.0,0.00028493,2]
[359352642,1745949059060,-220.56836655,0.00028493,2]
[359352643,1745949059070,-163.25,0.00028493,2]
[359352644,1745949059081,-542.45,0.00028493,2]
[359352645,1745949059090,-656.69,0.00028493,2]
[359352646,1745949059101,-552.91,0.00028493,2]
[359352647,1745949059111,-470.0,0.00028493,2]
[359352648,1745949059121,-470.0,0.00028493,2]
[359352649,1745949059131,-470.0,0.00028493,2]
[359352650,1745949059141,-470.0,0.00028493,2]
[359352651,1745949059151,-610.66,0.00028493,2]
[359352652,1745949059160,-470.0,0.00028493,2]
[359352653,1745949059170,-470.0,0.00028493,2]
[359352654,1745949059179,-185.437921,0.00028493,2]
[359352655,1745949059189,-470.0,0.00028493,2]
[359352656,1745949059198,-558.47,0.00028493,2]
[359352657,1745949059207,-471.31,0.00028493,2]
[359352658,1745949059216,-1049.74,0.00028493,2]
[359352659,1745949059226,-470.0,0.00028493,2]
[359352660,1745949059235,-470.0,0.00028493,2]
[359352661,1745949059245,-566.36,0.00028493,2]
[359352662,1745949059255,-470.0,0.00028493,2]
[359352663,1745949059265,-470.0,0.00028493,2]
[359352664,1745949059274,-534.78,0.00028493,2]
[359352665,1745949059283,-563.33,0.00028493,2]